lending/lending_fUSD_20251124
["ID","MTS","AMOUNT","RATE_DAILY","PERIOD"]
[394805003,1763969439354,-500.0,0.00041534,31]
[394805005,1763969439363,-500.0,0.00041534,31]
[394805007,1763969439373,-500.0,0.00041534,31]
[394805009,1763969439383,-500.0,0.00041534,31]
[394805011,1763969439392,-500.0,0.00041534,31]
[394805013,1763969439401,-500.0,0.00041534,31]
[394805015,1763969439411,-500.0,0.00041534,31]
[394805017,1763969439420,-500.0,0.00041534,31]
[394805019,1763969439431,-500.0,0.00041534,31]
[394805021,1763969439441,-500.0,0.00041534,31]
[394805023,1763969439450,-500.0,0.00041534,31]
[394805025,1763969439460,-500.0,0.00041534,31]
[394805027,1763969439469,-500.0,0.00041534,31]
[394805029,1763969439480,-500.0,0.00041534,31]
[394805031,1763969439489,-513.16819226,0.00041535,8]
[394805032,1763969439498,-181.07661978,0.00041535,8]
[394805035,1763969439508,-550.01482503,0.00041535,8]
[394805037,1763969439517,-500.0,0.00041535,8]
[394805039,1763969439527,-500.0,0.00041535,8]
[394805041,1763969439536,-282.18123783,0.00041535,8]
[394805043,1763969439545,-309.39642034,0.00041535,8]
[394805044,1763969439555,-386.60822509,0.00041535,8]
[394805045,1763969439564,-364.75587455,0.00041535,8]
[394805046,1763969439574,-564.65,0.00041535,8]
[394805047,1763969439584,-257.49,0.00041535,8]
[394805048,1763969439593,-500.0,0.00041535,8]
[394805049,1763969439602,-1534.88,0.00041535,8]
[394805050,1763969439611,-500.0,0.00041535,8]
[394805051,1763969439621,-500.0,0.00041535,8]
[394805052,1763969439630,-500.0,0.00041535,8]
[394805053,1763969439640,-500.0,0.00041535,8]
[394805054,1763969439649,-500.0,0.00041535,8]
[394805055,1763969439659,-533.23985474,0.00041535,8]
[394805056,1763969439668,-500.0,0.00041535,8]
[394805057,1763969439678,-500.0,0.00041535,8]
[394805058,1763969439687,-500.0,0.00041535,8]
[394805059,1763969439697,-500.0,0.00041535,8]
[394805060,1763969439707,-500.0,0.00041535,8]
[394805061,1763969439716,-275.5,0.00041535,8]
[394805062,1763969439726,-341.10129011,0.00041535,8]
[394805063,1763969439735,-500.0,0.00041535,8]
[394805064,1763969439745,-500.0,0.00041535,8]
[394805065,1763969439754,-500.0,0.00041535,8]
[394805067,1763969439764,-500.0,0.00041535,8]
[394805068,1763969439773,-186.17470191,0.00041535,8]
[394805069,1763969439782,-500.0,0.00041535,8]
[394805070,1763969439791,-531.67014476,0.00041536,8]
[394805072,1763969439801,-176.07029951,0.00041536,8]
[394805074,1763969439810,-500.0,0.00041536,8]
[394805076,1763969439820,-500.0,0.00041536,8]
[394805078,1763969439830,-500.0,0.00041536,8]
[394805080,1763969439840,-500.0,0.00041536,8]
[394805082,1763969439849,-500.0,0.00041536,8]
[394805084,1763969439859,-500.0,0.00041536,8]
[394805086,1763969439868,-500.0,0.00041536,8]
[394805088,1763969439878,-500.0,0.00041536,8]
[394805090,1763969439887,-500.0,0.00041536,8]
[394805092,1763969439896,-500.0,0.00041536,8]
[394805094,1763969439906,-500.0,0.00041547,2]
[394805096,1763969439916,-502.46810807,0.00041573,10]
[394805098,1763969439926,-500.92010829,0.00041573,10]
[394805100,1763969439935,-505.95880114,0.00041573,10]
[394805102,1763969439949,-1000.0,0.000416,2]
[394805104,1763969439959,-164.19292156,0.00041617,15]
[394805106,1763969439968,-5000.0,0.00041618,120]
[394805107,1763969439978,-23190.1955,0.00041618,120]
[394805108,1763969439988,-1000.0,0.00041619,2]
[394805109,1763969439997,-275.90470704,0.00041621,4]
[394805110,1763969440007,-207.60091557,0.00041622,17]
[394805111,1763969440017,-164.19292156,0.00041645,15]
[394805113,1763969440026,-500.0,0.00041647,60]
[394805115,1763969440035,-275.90470703,0.00041662,4]
[394805117,1763969440044,-164.19292156,0.00041672,15]
[394805119,1763969440054,-1312.67161797,0.00041698,4]
[394805121,1763969440063,-1312.67161797,0.00041699,4]
[394805123,1763969440073,-164.19292156,0.000417,15]
[394805125,1763969440082,-275.90470703,0.00041702,4]
[394805127,1763969440091,-7876.02970782,0.00041707,4]
[394805129,1763969440101,-10501.3729438,0.00041708,4]
[394805131,1763969440110,-11814.0445617,0.00041709,4]
[394805133,1763969440120,-1529.71513653,0.00041709,4]
[394805135,1763969440130,-167.84247087,0.00041713,16]
[394805137,1763969440139,-504.16221475,0.00041717,8]
[394805139,1763969440148,-500.0,0.00041717,8]
[394805141,1763969440158,-500.0,0.00041717,8]
[394805143,1763969440167,-500.0,0.00041717,8]
[394805145,1763969440176,-500.0,0.00041717,8]
[394805146,1763969440187,-500.0,0.00041717,8]
[394805148,1763969440196,-500.0,0.00041717,8]
[394805151,1763969440208,-500.0,0.00041717,8]
[394805153,1763969440217,-500.0,0.00041717,8]
[394805155,1763969440226,-500.0,0.00041717,8]
[394805157,1763969440236,-500.0,0.00041717,8]
[394805159,1763969440246,-500.0,0.00041717,8]
[394805161,1763969440255,-500.0,0.00041717,8]
[394805163,1763969440264,-500.0,0.00041717,8]
[394805165,1763969440274,-693.75,0.00041717,8]
[394805167,1763969440284,-500.0,0.00041717,8]
[394805169,1763969440293,-500.0,0.00041717,8]
[394805170,1763969440302,-500.0,0.00041717,8]
[394805172,1763969440311,-364.67267847,0.00041717,8]
[394805175,1763969440325,-500.0,0.00041717,8]
[394805177,1763969440334,-500.0,0.00041717,8]
[394805179,1763969440343,-500.0,0.00041717,8]
[394805181,1763969440353,-500.0,0.00041717,8]
[394805183,1763969440362,-500.0,0.00041717,8]
[394805185,1763969440371,-500.0,0.00041717,8]
[394805186,1763969440380,-566.75038103,0.00041717,8]
[394805187,1763969440390,-500.0,0.00041717,8]
[394805189,1763969440398,-541.61271093,0.00041717,8]
[394805190,1763969440407,-500.0,0.00041717,8]
[394805191,1763969440416,-1000.0,0.00041717,8]
[394805192,1763969440426,-500.0,0.00041717,8]
[394805193,1763969440435,-500.0,0.00041717,8]
[394805194,1763969440444,-500.0,0.00041717,8]
[394805195,1763969440454,-500.0,0.00041717,8]
[394805196,1763969440463,-500.0,0.00041717,8]
[394805197,1763969440473,-500.0,0.00041717,8]
[394805198,1763969440483,-649.0417843,0.00041717,8]
[394805199,1763969440492,-500.0,0.00041717,8]
[394805200,1763969440502,-500.0,0.00041717,8]
[394805201,1763969440511,-500.0,0.00041717,8]
[394805202,1763969440520,-500.0,0.00041717,8]
[394805203,1763969440529,-500.0,0.00041717,8]
[394805204,1763969440539,-500.0,0.00041717,8]
[394805205,1763969440548,-500.0,0.00041717,8]
[394805206,1763969440558,-500.0,0.00041717,8]
[394805207,1763969440568,-500.0,0.00041717,8]
[394805208,1763969440578,-500.0,0.00041717,8]
[394805209,1763969440587,-333.10938727,0.00041717,8]
[394805210,1763969440596,-500.0,0.00041717,8]
[394805211,1763969440605,-500.0,0.00041717,8]
[394805212,1763969440614,-500.0,0.00041717,8]
[394805213,1763969440623,-500.0,0.00041717,8]
[394805214,1763969440632,-500.0,0.00041717,8]
[394805215,1763969440642,-500.0,0.00041717,8]
[394805216,1763969440651,-500.0,0.00041717,8]
[394805217,1763969440661,-399.21,0.00041717,8]
[394805219,1763969440670,-605.15,0.00041717,8]
[394805220,1763969440679,-502.94781315,0.00041717,6]
[394805222,1763969440688,-500.0,0.00041717,8]
[394805223,1763969440698,-500.0,0.00041717,8]
[394805224,1763969440707,-500.0,0.00041717,8]
[394805225,1763969440717,-500.0,0.00041717,8]
[394805226,1763969440727,-500.0,0.00041717,8]
[394805227,1763969440737,-529.60714917,0.00041717,8]
[394805228,1763969440747,-500.0,0.00041717,8]
[394805229,1763969440755,-500.0,0.00041717,8]
[394805230,1763969440764,-500.0,0.00041717,8]
[394805231,1763969440774,-500.0,0.00041717,8]
[394805232,1763969440783,-500.0,0.00041717,8]
[394805233,1763969440793,-500.0,0.00041717,8]
[394805234,1763969440803,-500.0,0.00041717,8]
[394805235,1763969440813,-500.0,0.00041717,8]
[394805236,1763969440823,-711.23,0.00041717,8]
[394805237,1763969440833,-500.0,0.00041717,2]
[394805238,1763969440842,-500.0,0.00041717,8]
[394805239,1763969440852,-398.34624603,0.00041717,8]
[394805240,1763969440861,-500.0,0.00041717,8]
[394805241,1763969440870,-582.30923984,0.00041717,8]
[394805242,1763969440880,-500.0,0.00041717,8]
[394805243,1763969440888,-500.0,0.00041717,8]
[394805244,1763969440898,-500.0,0.00041717,8]
[394805245,1763969440907,-500.0,0.00041717,8]
[394805246,1763969440916,-500.0,0.00041717,8]
[394805247,1763969440926,-500.0,0.00041717,8]
[394805248,1763969440935,-500.0,0.00041717,8]
[394805249,1763969440950,-500.0,0.00041717,8]
[394805250,1763969440959,-500.0,0.00041717,8]
[394805251,1763969440968,-390.45071494,0.00041717,8]
[394805252,1763969440978,-500.0,0.00041717,8]
[394805253,1763969440989,-500.0,0.00041717,8]
[394805254,1763969440998,-387.23781826,0.00041717,8]
[394805255,1763969441007,-500.0,0.00041717,8]
[394805256,1763969441019,-596.05,0.00041717,8]
[394805257,1763969441028,-500.0,0.00041717,8]
[394805258,1763969441037,-500.0,0.00041717,8]
[394805259,1763969441047,-500.0,0.00041717,8]
[394805260,1763969441056,-500.0,0.00041717,8]
[394805261,1763969441066,-500.0,0.00041717,8]
[394805262,1763969441076,-500.0,0.00041717,8]
[394805263,1763969441087,-500.0,0.00041717,8]
[394805264,1763969441097,-542.05460198,0.00041717,8]
[394805265,1763969441106,-500.0,0.00041717,8]
[394805266,1763969441116,-505.29812242,0.00041717,8]
[394805267,1763969441126,-642.49,0.00041717,8]
[394805268,1763969441136,-500.0,0.00041717,8]
[394805269,1763969441146,-377.52883737,0.00041717,8]
[394805270,1763969441155,-176.7805254,0.00041717,8]
[394805271,1763969441165,-500.0,0.00041717,8]
[394805272,1763969441174,-500.0,0.00041717,8]
[394805273,1763969441184,-500.0,0.00041717,8]
[394805274,1763969441193,-500.0,0.00041717,8]
[394805275,1763969441202,-500.0,0.00041717,8]
[394805276,1763969441212,-500.0,0.00041717,8]
[394805277,1763969441221,-500.0,0.00041717,8]
[394805278,1763969441231,-500.0,0.00041717,8]
[394805279,1763969441240,-500.0,0.00041717,8]
[394805280,1763969441250,-500.0,0.00041717,8]
[394805281,1763969441259,-500.0,0.00041717,8]
[394805282,1763969441269,-500.0,0.00041717,8]
[394805283,1763969441278,-500.0,0.00041717,8]
[394805284,1763969441288,-500.0,0.00041717,8]
[394805285,1763969441297,-1000.0,0.00041717,8]
[394805286,1763969441306,-541.51350438,0.00041717,8]
[394805287,1763969441316,-500.0,0.00041717,8]
[394805288,1763969441326,-500.0,0.00041717,8]
[394805289,1763969441335,-500.0,0.00041717,8]
[394805290,1763969441344,-500.0,0.00041717,8]
[394805291,1763969441353,-520.37102484,0.00041717,8]
[394805292,1763969441363,-262.93,0.00041717,8]
[394805293,1763969441372,-500.0,0.00041717,8]
[394805294,1763969441382,-500.0,0.00041717,8]
[394805295,1763969441391,-500.0,0.00041717,8]
[394805296,1763969441400,-500.0,0.00041717,8]
[394805297,1763969441410,-500.0,0.00041717,8]
[394805298,1763969441419,-500.0,0.00041717,8]
[394805299,1763969441428,-500.0,0.00041717,8]
[394805300,1763969441437,-500.0,0.00041717,8]
[394805301,1763969441447,-500.0,0.00041717,8]
[394805302,1763969441456,-86756.2157751,0.00041718,21]
[394805303,1763969441466,-500.0,0.00041718,8]
[394805304,1763969441475,-500.0,0.00041718,8]
[394805305,1763969441486,-275.05,0.00041718,8]
[394805306,1763969441495,-507.73068236,0.00041718,8]
[394805307,1763969441504,-293.49583677,0.00041718,8]
[394805308,1763969441513,-501.01055943,0.00041718,8]
[394805309,1763969441523,-523.89569787,0.00041718,8]
[394805310,1763969441533,-500.0,0.00041718,8]
[394805311,1763969441542,-500.0,0.00041718,8]
[394805312,1763969441552,-500.0,0.00041718,8]
[394805313,1763969441561,-500.0,0.00041718,8]
[394805314,1763969441571,-500.0,0.00041718,8]
[394805315,1763969441581,-500.0,0.00041718,8]
[394805316,1763969441590,-500.0,0.00041718,8]
[394805317,1763969441599,-508.68852692,0.00041718,8]
[394805318,1763969441609,-500.0,0.00041718,8]
[394805319,1763969441618,-500.0,0.00041718,8]
[394805320,1763969441627,-501.76709609,0.00041718,8]
[394805321,1763969441637,-500.0,0.00041718,8]
[394805322,1763969441646,-500.0,0.00041718,8]
[394805323,1763969441655,-500.0,0.00041718,8]
[394805324,1763969441665,-500.0,0.00041718,8]
[394805325,1763969441674,-513.60394512,0.00041718,8]
[394805326,1763969441683,-583.23,0.00041718,30]
[394805327,1763969441692,-500.0,0.00041718,8]
[394805328,1763969441702,-503.96933013,0.00041718,8]
[394805329,1763969441711,-387.36440118,0.00041718,8]
[394805330,1763969441721,-503.06174548,0.00041718,8]
[394805331,1763969441731,-539.2436399,0.00041718,8]
[394805332,1763969441740,-500.0,0.00041718,8]
[394805333,1763969441750,-513.64757694,0.00041718,8]
[394805334,1763969441759,-500.0,0.00041718,8]
[394805335,1763969441768,-500.0,0.00041718,8]
[394805336,1763969441778,-510.34356386,0.00041718,8]
[394805337,1763969441788,-471.35280192,0.00041718,8]
[394805338,1763969441797,-500.0,0.00041718,8]
[394805339,1763969441807,-501.62832025,0.00041718,8]
[394805340,1763969441816,-500.0,0.00041718,8]
[394805341,1763969441826,-501.32133921,0.00041718,8]
[394805342,1763969441836,-412.17342089,0.00041718,8]
[394805343,1763969441845,-533.2407796,0.00041718,8]
[394805344,1763969441855,-500.0,0.00041718,8]
[394805345,1763969441864,-500.0,0.00041718,8]
[394805346,1763969441874,-500.0,0.00041718,8]
[394805347,1763969441883,-234.70239157,0.00041718,8]
[394805348,1763969441893,-500.0,0.00041718,8]
[394805349,1763969441903,-505.08384143,0.00041718,8]
[394805350,1763969441913,-624.94607424,0.00041718,8]
[394805351,1763969441922,-502.35396255,0.00041718,8]
[394805352,1763969441932,-622.55784741,0.00041718,8]
[394805353,1763969441945,-500.0,0.00041718,8]
[394805354,1763969441954,-509.10078109,0.00041718,8]
[394805355,1763969441964,-552.1086928,0.00041718,8]
[394805356,1763969441973,-446.90092834,0.00041718,8]
[394805357,1763969441983,-582.76993539,0.00041718,8]
[394805358,1763969441993,-500.0,0.00041718,8]
[394805359,1763969442002,-500.0,0.00041718,8]
[394805360,1763969442012,-500.0,0.00041718,8]
[394805361,1763969442023,-500.0,0.00041718,8]
[394805362,1763969442033,-500.0,0.00041718,8]
[394805363,1763969442043,-300.77647388,0.00041718,2]
[394805364,1763969442052,-500.0,0.00041718,8]
[394805365,1763969442062,-500.0,0.00041718,8]
[394805366,1763969442071,-500.0,0.00041718,8]
[394805367,1763969442080,-500.0,0.00041718,8]
[394805368,1763969442090,-500.0,0.00041718,8]
[394805369,1763969442099,-500.0,0.00041718,8]
[394805370,1763969442108,-500.0,0.00041718,8]
[394805371,1763969442118,-500.0,0.00041718,8]
[394805372,1763969442128,-500.0,0.00041718,8]
[394805373,1763969442138,-500.0,0.00041718,8]
[394805374,1763969442147,-500.0,0.00041718,8]
[394805375,1763969442157,-500.0,0.00041718,8]
[394805376,1763969442167,-500.0,0.00041718,3]
[394805377,1763969442176,-500.0,0.00041718,8]
[394805378,1763969442185,-500.0,0.00041718,8]
[394805379,1763969442195,-500.0,0.00041718,8]
[394805380,1763969442205,-350.58994301,0.00041718,8]
[394805381,1763969442215,-1271.58,0.00041718,8]
[394805382,1763969442225,-500.0,0.00041718,8]
[394805383,1763969442235,-241.6577499,0.00041718,8]
[394805384,1763969442245,-500.0,0.00041718,8]
[394805385,1763969442253,-501.22694691,0.00041718,8]
[394805386,1763969442263,-500.0,0.00041718,2]
[394805387,1763969442272,-500.0,0.00041718,2]
[394805388,1763969442281,-500.0,0.00041718,2]
[394805389,1763969442291,-500.0,0.00041718,8]
[394805390,1763969442301,-862.41,0.00041718,8]
[394805391,1763969442310,-454.90693703,0.00041718,8]
[394805392,1763969442320,-500.0,0.00041718,8]
[394805393,1763969442330,-500.0,0.00041718,2]
[394805395,1763969442339,-500.0,0.00041718,8]
[394805396,1763969442349,-500.0,0.00041718,8]
[394805397,1763969442358,-500.0,0.00041718,8]
[394805398,1763969442368,-500.0,0.00041718,8]
[394805399,1763969442378,-500.0,0.00041718,8]
[394805400,1763969442388,-385.17533386,0.00041718,8]
[394805401,1763969442397,-500.0,0.00041718,8]
[394805402,1763969442406,-5597.0,0.00041719,7]
[394805403,1763969442416,-211025.72608362,0.00041719,2]
[394805404,1763969442438,-789.18466045,0.00040999,120]
[394805405,1763969442447,-7916.79382539,0.00041719,2]
[394805406,1763969442458,-2268.9727187,0.00041719,2]
[394805407,1763969442469,-538788.50737229,0.00041719,2]
[394805408,1763969442478,-164.19292156,0.00041727,15]
[394805409,1763969442489,-275.90470703,0.00041743,4]
[394805410,1763969442498,-164.19292156,0.00041755,15]
[394805411,1763969442507,-164.19292156,0.00041782,15]
[394805412,1763969442517,-275.90470703,0.00041784,4]
[394805413,1763969442526,-1194.3488,0.00041788,2]
[394805414,1763969442535,-1534.88,0.00041809,8]
[394805415,1763969442544,-500.0,0.00041809,8]
[394805416,1763969442554,-198.82,0.00041809,8]
[394805417,1763969442563,-534.92956311,0.00041809,8]
[394805418,1763969442572,-302.44,0.00041809,8]
[394805419,1763969442583,-500.0,0.00041809,8]
[394805420,1763969442592,-500.0,0.00041809,8]
[394805421,1763969442607,-500.0,0.00041809,8]
[394805422,1763969442617,-500.0,0.00041809,8]
[394805423,1763969442626,-354.85559866,0.00041809,8]
[394805424,1763969442636,-500.0,0.00041809,8]
[394805425,1763969442646,-500.0,0.00041809,8]
[394805426,1763969442655,-164.19292156,0.0004181,15]
[394805427,1763969442665,-610.92814633,0.0004181,8]
[394805428,1763969442675,-500.0,0.00041812,2]
[394805429,1763969442685,-10313.27016647,0.00041813,2]
[394805430,1763969442695,-503.18841892,0.00041819,8]
[394805431,1763969442705,-500.0,0.00041819,8]
[394805432,1763969442714,-512.0390995,0.00041819,8]
[394805433,1763969442724,-500.0,0.00041819,8]
[394805434,1763969442735,-500.0,0.00041819,8]
[394805435,1763969442874,-503.67626306,0.00041819,8]
[394805436,1763969442902,-516.15010901,0.00041819,8]
[394805437,1763969442913,-500.0,0.00041819,8]
[394805438,1763969442923,-264.02,0.00041819,8]
[394805439,1763969442933,-500.0,0.00041819,8]
[394805440,1763969442945,-500.0,0.00041819,8]
[394805441,1763969442955,-500.0,0.00041819,7]
[394805442,1763969442964,-500.0,0.00041819,8]
[394805443,1763969442974,-633.17,0.00041819,8]
[394805444,1763969442984,-500.80161705,0.00041819,8]
[394805445,1763969442994,-500.0,0.00041819,8]
[394805446,1763969443004,-500.0,0.00041819,8]
[394805447,1763969443013,-562.95710983,0.00041819,8]
[394805448,1763969443023,-214.88339266,0.00041819,8]
[394805449,1763969443032,-595.5987106,0.00041819,8]
[394805450,1763969443042,-500.0,0.00041819,8]
[394805451,1763969443052,-500.0,0.00041819,8]
[394805452,1763969443062,-519.7324963,0.00041819,8]
[394805453,1763969443072,-500.0,0.00041819,8]
[394805454,1763969443082,-500.0,0.00041819,8]
[394805455,1763969443091,-500.0,0.00041819,8]
[394805456,1763969443101,-614.19319784,0.00041819,8]
[394805457,1763969443111,-569.80386363,0.00041819,8]
[394805458,1763969443120,-500.0,0.00041819,8]
[394805459,1763969443129,-500.0,0.00041819,8]
[394805460,1763969443139,-519.66576683,0.00041819,8]
[394805461,1763969443157,-500.0,0.00041819,8]
[394805462,1763969443169,-453.61840584,0.00041819,8]
[394805463,1763969443180,-500.0,0.00041819,8]
[394805464,1763969443190,-500.0,0.00041819,8]
[394805465,1763969443200,-500.0,0.00041819,8]
[394805466,1763969443211,-500.0,0.00041819,8]
[394805467,1763969443221,-500.0,0.00041819,8]
[394805468,1763969443231,-500.0,0.00041819,8]
[394805469,1763969443242,-507.96465957,0.00041819,8]
[394805470,1763969443252,-500.0,0.00041819,8]
[394805471,1763969443262,-500.0,0.00041819,8]
[394805472,1763969443272,-500.0,0.00041819,8]
[394805473,1763969443283,-500.0,0.00041819,8]
[394805474,1763969443293,-579.39634238,0.00041819,8]
[394805475,1763969443304,-500.0,0.00041819,8]
[394805476,1763969443313,-500.0,0.00041819,8]
[394805477,1763969443323,-500.0,0.00041819,8]
[394805478,1763969443333,-500.0,0.00041819,8]
[394805479,1763969443343,-500.0,0.00041819,8]
[394805480,1763969443353,-500.0,0.00041819,8]
[394805481,1763969443363,-500.0,0.00041819,8]
[394805482,1763969443374,-500.0,0.00041819,8]
[394805483,1763969443384,-500.0,0.00041819,8]
[394805484,1763969443396,-500.0,0.00041819,8]
[394805485,1763969443407,-500.0,0.00041819,8]
[394805486,1763969443418,-500.0,0.00041819,8]
[394805487,1763969443428,-500.0,0.00041819,8]
[394805488,1763969443438,-500.0,0.00041819,8]
[394805489,1763969443448,-500.0,0.00041819,8]
[394805490,1763969443458,-591.78,0.00041819,8]
[394805491,1763969443468,-500.0,0.00041819,8]
[394805492,1763969443478,-500.0,0.00041819,8]
[394805493,1763969443487,-500.0,0.00041819,8]
[394805494,1763969443497,-500.0,0.00041819,8]
[394805495,1763969443507,-500.0,0.00041819,8]
[394805496,1763969443517,-500.0,0.00041819,8]
[394805497,1763969443528,-500.0,0.00041819,8]
[394805498,1763969443538,-500.0,0.00041819,8]
[394805499,1763969443548,-386.59071453,0.00041819,8]
[394805500,1763969443558,-500.0,0.00041819,8]
[394805501,1763969443568,-500.0,0.00041819,8]
[394805502,1763969443579,-500.0,0.00041819,8]
[394805503,1763969443590,-500.0,0.00041819,8]
[394805504,1763969443600,-500.0,0.00041819,8]
[394805505,1763969443613,-500.0,0.00041819,8]
[394805506,1763969443624,-500.0,0.00041819,8]
[394805508,1763969443635,-500.0,0.00041819,8]
[394805510,1763969443646,-500.0,0.00041819,8]
[394805512,1763969443656,-418.16023007,0.00041819,8]
[394805513,1763969443666,-500.0,0.00041819,8]
[394805515,1763969443676,-501.73689134,0.00041819,8]
[394805517,1763969443686,-500.0,0.00041819,8]
[394805520,1763969443696,-500.0,0.00041819,8]
[394805523,1763969443710,-500.0,0.00041819,8]
[394805525,1763969443720,-500.0,0.00041819,8]
[394805527,1763969443731,-500.0,0.00041819,8]
[394805529,1763969443741,-500.0,0.00041819,8]
[394805531,1763969443752,-500.0,0.00041819,8]
[394805533,1763969443762,-500.0,0.00041819,8]
[394805535,1763969443773,-225.87114062,0.00041819,8]
[394805537,1763969443783,-280.67378645,0.00041819,8]
[394805539,1763969443793,-500.0,0.00041819,8]
[394805541,1763969443804,-500.0,0.00041819,8]
[394805542,1763969443814,-500.0,0.00041819,8]
[394805543,1763969443824,-506.19708397,0.00041819,120]
[394805544,1763969443834,-500.0,0.00041819,8]
[394805545,1763969443844,-500.0,0.00041819,8]
[394805546,1763969443854,-204.84468055,0.00041819,8]
[394805547,1763969443864,-500.0,0.00041819,8]
[394805548,1763969443874,-447.76326179,0.00041819,8]
[394805549,1763969443883,-500.0,0.00041819,8]
[394805550,1763969443893,-500.0,0.00041819,8]
[394805551,1763969443903,-504.41230854,0.00041819,8]
[394805552,1763969443913,-241.60849711,0.00041819,8]
[394805553,1763969443924,-500.0,0.00041819,8]
[394805554,1763969443934,-500.0,0.00041819,8]
[394805555,1763969443948,-231.62525193,0.00041819,8]
[394805556,1763969443958,-497.63924147,0.00041819,8]
[394805557,1763969443968,-500.0,0.00041819,8]
[394805558,1763969443978,-502.91881483,0.00041819,8]
[394805559,1763969443989,-508.54170318,0.00041819,8]
[394805560,1763969443999,-500.0,0.00041819,8]
[394805561,1763969444008,-500.0,0.00041819,8]
[394805562,1763969444019,-500.0,0.00041819,8]
[394805563,1763969444029,-500.0,0.0004182,8]
[394805564,1763969444038,-617.9195348,0.0004182,8]
[394805565,1763969444048,-500.0,0.0004182,8]
[394805566,1763969444057,-500.0,0.0004182,8]
[394805567,1763969444067,-500.0,0.0004182,8]
[394805568,1763969444076,-500.0,0.0004182,8]
[394805569,1763969444085,-500.0,0.0004182,7]
[394805570,1763969444099,-500.0,0.0004182,7]
[394805571,1763969444109,-500.0,0.0004182,7]
[394805572,1763969444119,-500.0,0.0004182,8]
[394805573,1763969444128,-505.92358762,0.0004182,8]
[394805574,1763969444139,-500.0,0.0004182,8]
[394805575,1763969444149,-500.0,0.0004182,8]
[394805576,1763969444158,-500.0,0.0004182,8]
[394805577,1763969444168,-500.0,0.0004182,8]
[394805578,1763969444178,-500.0,0.0004182,8]
[394805579,1763969444188,-500.0,0.0004182,8]
[394805580,1763969444198,-500.0,0.0004182,8]
[394805581,1763969444208,-500.0,0.0004182,8]
[394805582,1763969444218,-200.0,0.0004182,7]
[394805583,1763969444229,-500.0,0.00041821,2]
[394805584,1763969444239,-275.90470703,0.00041824,5]
[394805585,1763969444248,-164.19292156,0.00041837,15]
[394805586,1763969444257,-275.90470703,0.00041865,5]
[394805587,1763969444267,-1057.25524162,0.00041865,15]
[394805588,1763969444278,-164.19292156,0.00041865,15]
[394805589,1763969444288,-166.8,0.00041876,2]
[394805590,1763969444298,-200.0,0.00041882,120]
[394805591,1763969444308,-1384.18440193,0.000419,120]
[394805592,1763969444318,-187.87026222,0.000419,120]
[394805593,1763969444328,-529.85882535,0.000419,120]
[394805594,1763969444339,-205.17667688,0.000419,120]
[394805595,1763969444348,-241.49283542,0.000419,120]
[394805596,1763969444358,-335.10249245,0.000419,120]
[394805597,1763969444368,-487.43933682,0.000419,120]
[394805598,1763969444379,-441.83252302,0.00041912,7]
[394805599,1763969444389,-500.0,0.00041912,8]
[394805600,1763969444398,-500.0,0.00041912,8]